[Event "FRA-ch Youth U14W 2019"]
[Site "Hyeres"]
[Date "2019.04.17"]
[Round "5.3"]
[White "Gattegno-Graciet, Maylis"]
[Black "Favarel-Lubeigt, Helina"]
[Result "0-1"]
[ECO "D93"]
[WhiteElo "1565"]
[BlackElo "1573"]
[Annotator "NA RC"]
[PlyCount "140"]
[EventDate "2019.04.14"]
[EventType "swiss"]
[EventCountry "FRA"]
[SourceTitle "playchess.com"]
[Source "ChessBase"]
[SourceQuality "1"]
[TimeControl "5400+30"]

1. d4 {[%emt 0:00:00]} Nf6 {[%emt 0:00:00]} 2. Bf4 {[%emt 0:00:00]} g6 {[%emt 0:00:10]} 3. e3 {[%emt 0:00:37]} Bg7 {[%emt 0:00:22]} 4. Nf3 {[%emt 0:01:15]} O-O {[%emt 0:00:29]} 5. c4 {[%emt 0:01:08]} d5 {[%emt 0:00:51]} 6. Nc3 {[%emt 0:00:45]} c5 {[%emt 0:02:04]} 7. Be2 {[%emt 0:07:32]} Nc6 {[%emt 0:05:39]} 8. Ne5 {[%emt 0:05:06]} Qb6 {[%emt 0:06:33]} 9. Nxc6 {[%emt 0:03:58]} bxc6 {[%emt 0:03:01]} 10. Qd2 {[%emt 0:02:05]} cxd4 {[%emt 0:05:20]} 11. exd4 {[%emt 0:05:00]} dxc4 {[%emt 0:02:07]} 12. Bxc4 {[%emt 0:01:25]} Rd8 {[%emt 0:04:15]} 13. Be5 {[%emt 0:01:58]} Qb7 {[%emt 0:12:19]} 14. O-O {[%emt 0:01:09]} Bf5 {[%emt 0:01:17]} 15. Rac1 {[%emt 0:02:30]} c5 {[%emt 0:04:45]} 16. d5 {[%emt 0:09:47]} Qb4 {[%emt 0:06:30]} 17. Qe2 {[%emt 0:04:47]} Bg4 {[%emt 0:11:39]} 18. f3 {[%emt 0:01:48]} Bd7 {[%emt 0:00:39]} 19. b3 {[%emt 0:03:31]} Qb6 {[%emt 0:01:28]} 20. Rfd1 {[%emt 0:02:15]} Bh6 {[%emt 0:01:14]} 21. Ra1 {[%emt 0:01:49]} Be8 {[%emt 0:02:52]} 22. d6 {[%emt 0:05:09]} Bf8 {[%emt 0:08:04]} 23. dxe7 {[%emt 0:06:12]} Bxe7 {[%emt 0:00:14]} 24. Bg3 {[%emt 0:06:24]} Bf8 {[%emt 0:00:49]} 25. Rxd8 {[%emt 0:00:55]} Rxd8 {[%emt 0:00:25]} 26. Rd1 {[%emt 0:00:18]} Bg7 {[%emt 0:01:42]} 27. Be5 {[%emt 0:01:07]} Bc6 {[%emt 0:03:24]} 28. Rxd8+ {[%emt 0:05:00]} Qxd8 {[%emt 0:00:09]} 29. Qd3 {[%emt 0:02:48]} Qe7 {[%emt 0:01:25]} 30. Qe2 {[%emt 0:04:29]} Qd7 {[%emt 0:02:27]} 31. Kf1 {[%emt 0:01:28]} Kf8 {[%emt 0:01:14]} 32. Qd3 {[%emt 0:00:10]} Qxd3+ {[%emt 0:00:47]} 33. Bxd3 {[%emt 0:00:12]} Ke7 {[%emt 0:00:28]} 34. Bc4 {[%emt 0:00:41]} Bh6 {[%emt 0:00:38]} 35. Ke2 {[%emt 0:00:15]} Nd7 {[%emt 0:00:23]} 36. Bg3 {[%emt 0:00:12]} Bg7 {[%emt 0:00:30]} 37. Nb5 {[%emt 0:01:28]} Bxb5 {[%emt 0:00:59]} 38. Bxb5 {[%emt 0:00:06]} Bd4 {[%emt 0:01:05]} 39. Bf2 {[%emt 0:00:44]} Bxf2 {[%emt 0:00:45]} 40. Kxf2 {[%emt 0:00:04]} Nb6 {[%emt 0:00:32]} 41. Ke3 {[%emt 0:00:35]} Kd6 {[%emt 0:00:37]} 42. Kd3 {[%emt 0:00:31]} f6 {[%emt 0:00:26]} 43. a3 {[%emt 0:00:31]} h6 {[%emt 0:00:47]} 44. f4 {[%emt 0:00:39]} g5 {[%emt 0:00:52]} 45. fxg5 {[%emt 0:00:38]} hxg5 {[%emt 0:00:22]} 46. g4 {[%emt 0:00:33]} Ke5 {[%emt 0:00:22]} 47. h3 {[%emt 0:00:59]} Kf4 {[%emt 0:01:18]} 48. Kd2 {[%emt 0:00:56]} Kg3 {[%emt 0:02:20]} 49. Bd3 {[%emt 0:00:32]} Nd5 {[%emt 0:00:57]} 50. Bf5 {[%emt 0:00:48]} Kxh3 {[%emt 0:02:23]} 51. Kd3 {[%emt 0:00:09]} Kg3 {[%emt 0:00:41]} 52. Bd7 {[%emt 0:00:50]} Kf4 {[%emt 0:00:27]} 53. Bc8 {[%emt 0:01:01]} Ne3 {[%emt 0:00:52]} 54. Kc3 {[%emt 0:01:18]} f5 {[%emt 0:00:37]} 55. gxf5 {[%emt 0:00:18]} Nxf5 {[%emt 0:00:08]} 56. Bxf5 {[%emt 0:00:28]} Kxf5 {[%emt 0:00:05]} 57. Kc4 {[%emt 0:00:14]} Ke4 {[%emt 0:00:10]} 58. Kxc5 {[%emt 0:00:12]} g4 {[%emt 0:00:07]} 59. Kb5 {[%emt 0:00:05]} g3 {[%emt 0:00:05]} 60. b4 {[%emt 0:00:15]} g2 {[%emt 0:00:10]} 61. a4 {[%emt 0:00:05]} g1=Q {[%emt 0:00:09]} 62. a5 {[%emt 0:00:29]} Qf1+ {[%emt 0:00:09]} 63. Kc5 {[%emt 0:00:14]} a6 {[%emt 0:00:13]} 64. Kb6 {[%emt 0:00:36]} Qb5+ {[%emt 0:00:06]} 65. Ka7 {[%emt 0:00:42]} Qc6 {[%emt 0:00:15]} 66. Kb8 {[%emt 0:00:16]} Kd5 {[%emt 0:00:15]} 67. Ka7 {[%emt 0:00:11]} Kd6 {[%emt 0:00:07]} 68. Kb8 {[%emt 0:00:11]} Kd7 {[%emt 0:00:33]} 69. Ka7 {[%emt 0:00:19]} Kc7 {[%emt 0:00:18]} 70. b5 {[%emt 0:00:02]} Qb7# {[%emt 0:09:35]} 0-1

[Event "FRA-ch Youth U14W 2019"]
[Site "Hyeres"]
[Date "2019.04.17"]
[Round "5.4"]
[White "Lesage, Margot"]
[Black "Chenevat, Montaine"]
[Result "1-0"]
[ECO "B34"]
[WhiteElo "1492"]
[BlackElo "1430"]
[Annotator "NA RC"]
[PlyCount "68"]
[EventDate "2019.04.14"]
[EventType "swiss"]
[EventCountry "FRA"]
[SourceTitle "playchess.com"]
[Source "ChessBase"]
[SourceQuality "1"]
[TimeControl "5400+30"]

1. e4 {[%emt 0:00:00]} c5 {[%emt 0:00:00]} 2. Nf3 {[%emt 0:00:00]} Nc6 {[%emt 0:00:00]} 3. d4 {[%emt 0:00:00]} cxd4 {[%emt 0:00:00]} 4. Nxd4 {[%emt 0:00:00]} g6 {[%emt 0:00:22]} 5. Nc3 {[%emt 0:00:25]} Bg7 {[%emt 0:00:15]} 6. Be3 {[%emt 0:00:16]} Nf6 {[%emt 0:01:00]} 7. f3 {[%emt 0:00:06]} O-O {[%emt 0:00:28]} 8. Qd2 {[%emt 0:00:09]} d5 {[%emt 0:08:06]} 9. O-O-O {[%emt 0:06:56]} e6 {[%emt 0:08:43]} 10. Bb5 {[%emt 0:12:30]} Bd7 {[%emt 0:05:46]} 11. Bxc6 {[%emt 0:01:06]} Bxc6 {[%emt 0:00:58]} 12. e5 {[%emt 0:00:10]} Nd7 {[%emt 0:00:34]} 13. f4 {[%emt 0:00:07]} Nb6 {[%emt 0:02:42]} 14. b3 {[%emt 0:01:30]} Qe7 {[%emt 0:06:07]} 15. Kb2 {[%emt 0:00:13]} Nd7 {[%emt 0:05:58]} 16. h4 {[%emt 0:00:47]} a5 {[%emt 0:02:27]} 17. a4 {[%emt 0:00:11]} Rfc8 {[%emt 0:04:07]} 18. h5 {[%emt 0:01:01]} Qb4 {[%emt 0:12:11]} 19. hxg6 {[%emt 0:01:42]} fxg6 {[%emt 0:12:14]} 20. Nxe6 {[%emt 0:00:38]} b5 {[%emt 0:02:58]} 21. Ng5 {[%emt 0:18:30]} bxa4 {[%emt 0:07:33]} 22. Nxa4 {[%emt 0:00:15]} Qxd2 {[%emt 0:00:41]} 23. Rxd2 {[%emt 0:00:17]} Bxa4 {[%emt 0:00:34]} 24. bxa4 {[%emt 0:00:33]} Rab8+ {[%emt 0:00:14]} 25. Kc1 {[%emt 0:01:06]} Rb3 {[%emt 0:02:06]} 26. Rxd5 {[%emt 0:02:57]} Rxe3 {[%emt 0:00:58]} 27. Rxd7 {[%emt 0:00:09]} Rec3 {[%emt 0:01:08]} 28. Rxh7 {[%emt 0:01:04]} Rxc2+ {[%emt 0:00:36]} 29. Kd1 {[%emt 0:00:08]} Rc1+ {[%emt 0:00:19]} 30. Ke2 {[%emt 0:00:15]} Bh8 {[%emt 0:03:15]} 31. Rh6 {[%emt 0:02:25]} R1c2+ {[%emt 0:07:15]} 32. Kf1 {[%emt 0:00:15]} Ra2 {[%emt 0:00:53]} 33. Rxg6+ {[%emt 0:00:26]} Kf8 {[%emt 0:01:38]} 34. Rf7+ {[%emt 0:00:10]} Ke8 {[%emt 0:04:54]} 1-0

[Event "FRA-ch Youth U14W 2019"]
[Site "Hyeres"]
[Date "2019.04.18"]
[Round "6.1"]
[White "Nguyen, Thao Nhi"]
[Black "Lesage, Margot"]
[Result "1/2-1/2"]
[ECO "B30"]
[WhiteElo "1803"]
[BlackElo "1492"]
[Annotator "NA"]
[PlyCount "114"]
[EventDate "2019.04.14"]
[EventType "swiss"]
[EventCountry "FRA"]
[SourceTitle "playchess.com"]
[Source "ChessBase"]
[SourceQuality "1"]
[TimeControl "5400+30"]

1. e4 {[%emt 0:00:00]} c5 {[%emt 0:00:00]} 2. Nc3 {[%emt 0:00:00]} Nc6 {[%emt 0:00:00]} 3. Bb5 {[%emt 0:00:13]} Nd4 {[%emt 0:00:00]} 4. Bc4 {[%emt 0:00:09]} e6 {[%emt 0:00:00]} 5. Nf3 {[%emt 0:00:28]} Nf6 {[%emt 0:00:07]} 6. d3 {[%emt 0:13:41]} a6 {[%emt 0:00:40]} 7. Nxd4 {[%emt 0:04:37]} cxd4 {[%emt 0:00:20]} 8. Ne2 {[%emt 0:00:51]} b5 {[%emt 0:05:40]} 9. Bb3 {[%emt 0:00:14]} Bc5 {[%emt 0:01:10]} 10. O-O {[%emt 0:04:26]} O-O {[%emt 0:01:05]} 11. Bg5 {[%emt 0:02:32]} e5 {[%emt 0:15:16]} 12. f4 {[%emt 0:04:54]} Bd6 {[%emt 0:02:01]} 13. Kh1 {[%emt 0:21:16]} h6 {[%emt 0:00:21]} 14. Bh4 {[%emt 0:03:44]} exf4 {[%emt 0:00:30]} 15. Nxd4 {[%emt 0:02:20]} Be5 {[%emt 0:01:26]} 16. Bf2 {[%emt 0:04:21]} d5 {[%emt 0:01:15]} 17. Nc6 {[%emt 0:01:12]} Qd6 {[%emt 0:00:55]} 18. Nxe5 {[%emt 0:01:15]} Qxe5 {[%emt 0:00:15]} 19. exd5 {[%emt 0:01:43]} Nxd5 {[%emt 0:01:06]} 20. Qf3 {[%emt 0:00:50]} Be6 {[%emt 0:02:23]} 21. Rae1 {[%emt 0:01:10]} Qd6 {[%emt 0:02:12]} 22. Bd4 {[%emt 0:01:38]} Rfe8 {[%emt 0:05:23]} 23. Be5 {[%emt 0:01:30]} Qc5 {[%emt 0:01:19]} 24. Qe4 {[%emt 0:01:45]} Rad8 {[%emt 0:23:02]} 25. Bd4 {[%emt 0:12:58]} Qc8 {[%emt 0:03:26]} 26. Qe5 {[%emt 0:04:36]} f6 {[%emt 0:07:31]} 27. Qh5 {[%emt 0:01:33]} Qd7 {[%emt 0:03:33]} 28. c3 {[%emt 0:02:01]} Bf7 {[%emt 0:03:34]} 29. Qf3 {[%emt 0:00:36]} Ne3 {[%emt 0:00:53]} 30. Bxe3 {[%emt 0:01:42]} fxe3 {[%emt 0:00:10]} 31. Bxf7+ {[%emt 0:01:20]} Kxf7 {[%emt 0:00:07]} 32. d4 {[%emt 0:01:07]} Qe6 {[%emt 0:01:26]} 33. a3 {[%emt 0:00:22]} Rd7 {[%emt 0:00:52]} 34. Re2 {[%emt 0:00:18]} Rde7 {[%emt 0:00:18]} 35. Rfe1 {[%emt 0:00:31]} Qe4 {[%emt 0:02:21]} 36. Qh5+ {[%emt 0:00:43]} Kg8 {[%emt 0:02:08]} 37. Qc5 {[%emt 0:00:52]} f5 {[%emt 0:00:43]} 38. Rf1 {[%emt 0:01:01]} Qd3 {[%emt 0:01:21]} 39. Qd5+ {[%emt 0:00:16]} Kh8 {[%emt 0:01:06]} 40. Qf3 {[%emt 0:00:18]} f4 {[%emt 0:01:08]} 41. Rfe1 {[%emt 0:00:56]} Qe4 {[%emt 0:00:18]} 42. Rf1 {[%emt 0:01:02]} Qxf3 {[%emt 0:00:21]} 43. Rxf3 {[%emt 0:00:04]} g5 {[%emt 0:00:07]} 44. g3 {[%emt 0:00:41]} Rf8 {[%emt 0:00:15]} 45. Kg2 {[%emt 0:00:42]} Kg7 {[%emt 0:00:37]} 46. gxf4 {[%emt 0:00:49]} gxf4 {[%emt 0:00:11]} 47. Rh3 {[%emt 0:01:01]} Kg6 {[%emt 0:00:24]} 48. Kf3 {[%emt 0:00:22]} h5 {[%emt 0:02:35]} 49. Rg2+ {[%emt 0:00:28]} Kh6 {[%emt 0:00:05]} 50. Rh4 {[%emt 0:01:09]} Rf5 {[%emt 0:01:56]} 51. Re2 {[%emt 0:01:57]} Kg5 {[%emt 0:01:22]} 52. Rh3 {[%emt 0:00:03]} Kh6 {[%emt 0:00:22]} 53. Re1 {[%emt 0:00:42]} Re8 {[%emt 0:02:06]} 54. Re2 {[%emt 0:00:58]} Re7 {[%emt 0:00:08]} 55. Re1 {[%emt 0:00:24]} Re8 {[%emt 0:00:20]} 56. Re2 {[%emt 0:00:15]} Re7 {[%emt 0:00:10]} 57. Re1 {[%emt 0:00:18]} Re8 {[%emt 0:00:05]} 1/2-1/2

[Event "FRA-ch Youth U14W 2019"]
[Site "Hyeres"]
[Date "2019.04.18"]
[Round "6.2"]
[White "Favarel-Lubeigt, Helina"]
[Black "Cornileau, Juliette"]
[Result "0-1"]
[ECO "B30"]
[WhiteElo "1573"]
[BlackElo "1705"]
[Annotator "NA"]
[PlyCount "94"]
[EventDate "2019.04.14"]
[EventType "swiss"]
[EventCountry "FRA"]
[SourceTitle "playchess.com"]
[Source "ChessBase"]
[SourceQuality "1"]
[TimeControl "5400+30"]

1. e4 {[%emt 0:00:00]} c5 {[%emt 0:00:00]} 2. Nc3 {[%emt 0:00:00]} Nc6 {[%emt 0:00:00]} 3. Bb5 {[%emt 0:00:00]} Nd4 {[%emt 0:00:00]} 4. Bc4 {[%emt 0:00:00]} e6 {[%emt 0:00:36]} 5. Nf3 {[%emt 0:00:04]} Nf6 {[%emt 0:00:36]} 6. d3 {[%emt 0:03:32]} Be7 {[%emt 0:09:30]} 7. Nxd4 {[%emt 0:00:48]} cxd4 {[%emt 0:00:08]} 8. Ne2 {[%emt 0:00:13]} Qb6 {[%emt 0:07:05]} 9. O-O {[%emt 0:01:37]} O-O {[%emt 0:00:14]} 10. Kh1 {[%emt 0:00:42]} Rd8 {[%emt 0:03:02]} 11. Bb3 {[%emt 0:02:08]} d5 {[%emt 0:04:36]} 12. e5 {[%emt 0:01:37]} Ng4 {[%emt 0:10:06]} 13. f4 {[%emt 0:13:41]} Ne3 {[%emt 0:00:39]} 14. Bxe3 {[%emt 0:00:21]} dxe3 {[%emt 0:00:12]} 15. d4 {[%emt 0:00:27]} Qc6 {[%emt 0:11:31]} 16. Rf3 {[%emt 0:04:57]} b5 {[%emt 0:02:18]} 17. Rh3 {[%emt 0:06:01]} a5 {[%emt 0:12:16]} 18. a4 {[%emt 0:02:26]} Ba6 {[%emt 0:00:29]} 19. Qd3 {[%emt 0:05:10]} g6 {[%emt 0:00:38]} 20. Qxe3 {[%emt 0:00:38]} Bf8 {[%emt 0:00:54]} 21. axb5 {[%emt 0:13:55]} Bxb5 {[%emt 0:00:39]} 22. Nc3 {[%emt 0:06:20]} a4 {[%emt 0:04:01]} 23. Ba2 {[%emt 0:00:52]} Rdc8 {[%emt 0:04:21]} 24. Rb1 {[%emt 0:04:27]} Rcb8 {[%emt 0:11:11]} 25. Qe1 {[%emt 0:07:17]} Be7 {[%emt 0:04:51]} 26. Qd2 {[%emt 0:05:55]} Bf8 {[%emt 0:00:19]} 27. f5 {[%emt 0:01:16]} a3 {[%emt 0:04:33]} 28. fxg6 {[%emt 0:02:50]} hxg6 {[%emt 0:00:45]} 29. bxa3 {[%emt 0:05:08]} Rxa3 {[%emt 0:00:22]} 30. Bb3 {[%emt 0:00:24]} Bc4 {[%emt 0:00:57]} 31. Qd1 {[%emt 0:05:42]} Bxb3 {[%emt 0:02:00]} 32. cxb3 {[%emt 0:00:17]} Qa6 {[%emt 0:00:37]} 33. Na4 {[%emt 0:01:22]} Qb5 {[%emt 0:03:11]} 34. Nc3 {[%emt 0:02:02]} Qb4 {[%emt 0:00:56]} 35. Kg1 {[%emt 0:00:45]} Rc8 {[%emt 0:02:45]} 36. Ne2 {[%emt 0:00:41]} Ra2 {[%emt 0:00:44]} 37. Rd3 {[%emt 0:01:16]} Rcc2 {[%emt 0:00:33]} 38. Kf1 {[%emt 0:00:46]} Rxe2 {[%emt 0:00:26]} 39. Qxe2 {[%emt 0:01:01]} Rxe2 {[%emt 0:00:06]} 40. Kxe2 {[%emt 0:00:06]} Qa5 {[%emt 0:00:22]} 41. Kf3 {[%emt 0:00:44]} Qa2 {[%emt 0:00:55]} 42. Rbd1 {[%emt 0:01:07]} Bb4 {[%emt 0:01:00]} 43. Kg3 {[%emt 0:00:53]} Qc2 {[%emt 0:00:12]} 44. Kh3 {[%emt 0:00:41]} Qe2 {[%emt 0:00:32]} 45. g3 {[%emt 0:00:31]} Be1 {[%emt 0:00:49]} 46. b4 {[%emt 0:01:12]} Bxb4 {[%emt 0:00:25]} 47. Kh4 {[%emt 0:00:24]} Qh5# {[%emt 0:00:22]} 0-1

[Event "FRA-ch Youth U14W 2019"]
[Site "Hyeres"]
[Date "2019.04.19"]
[Round "7.1"]
[White "Cornileau, Juliette"]
[Black "Nguyen, Thao Nhi"]
[Result "1-0"]
[ECO "A47"]
[WhiteElo "1705"]
[BlackElo "1803"]
[Annotator "NA"]
[PlyCount "79"]
[EventDate "2019.04.14"]
[EventType "swiss"]
[EventCountry "FRA"]
[SourceTitle "playchess.com"]
[Source "ChessBase"]
[SourceQuality "1"]
[TimeControl "5400+30"]

1. d4 {[%emt 0:00:00]} Nf6 {[%emt 0:00:00]} 2. Nf3 {[%emt 0:00:00]} c5 {[%emt 0:00:00]} 3. e3 {[%emt 0:00:00]} e6 {[%emt 0:00:27]} 4. c3 {[%emt 0:00:00]} b6 {[%emt 0:00:24]} 5. Bd3 {[%emt 0:00:18]} Bb7 {[%emt 0:00:36]} 6. Nbd2 {[%emt 0:00:44]} Be7 {[%emt 0:01:48]} 7. O-O {[%emt 0:00:31]} O-O {[%emt 0:04:09]} 8. Qe2 {[%emt 0:02:04]} d6 {[%emt 0:07:35]} 9. e4 {[%emt 0:04:07]} cxd4 {[%emt 0:06:40]} 10. cxd4 {[%emt 0:12:57]} Nfd7 {[%emt 0:04:52]} 11. Nb3 {[%emt 0:09:32]} e5 {[%emt 0:08:08]} 12. d5 {[%emt 0:06:43]} a5 {[%emt 0:03:51]} 13. a4 {[%emt 0:04:16]} Na6 {[%emt 0:00:34]} 14. Be3 {[%emt 0:01:40]} f5 {[%emt 0:02:50]} 15. exf5 {[%emt 0:12:03]} Nb4 {[%emt 0:01:16]} 16. Bc4 {[%emt 0:07:46]} Kh8 {[%emt 0:08:55]} 17. Rad1 {[%emt 0:05:27]} Rxf5 {[%emt 0:04:43]} 18. Rd2 {[%emt 0:06:19]} Rf8 {[%emt 0:11:00]} 19. Rc1 {[%emt 0:04:37]} Rc8 {[%emt 0:07:18]} 20. Qd1 {[%emt 0:00:59]} Na6 {[%emt 0:02:27]} 21. Bb5 {[%emt 0:01:51]} Rxc1 {[%emt 0:02:09]} 22. Qxc1 {[%emt 0:00:24]} Nc7 {[%emt 0:02:46]} 23. Bc6 {[%emt 0:01:41]} Qc8 {[%emt 0:06:02]} 24. Rc2 {[%emt 0:00:56]} Nc5 {[%emt 0:01:14]} 25. Bxc5 {[%emt 0:01:03]} bxc5 {[%emt 0:01:53]} 26. Nxa5 {[%emt 0:01:18]} Ba8 {[%emt 0:00:53]} 27. Qd2 {[%emt 0:00:52]} Qa6 {[%emt 0:00:56]} 28. Bxa8 {[%emt 0:00:56]} Qxa8 {[%emt 0:00:37]} 29. Nc6 {[%emt 0:00:11]} Bf6 {[%emt 0:00:15]} 30. b3 {[%emt 0:00:25]} Qb7 {[%emt 0:00:33]} 31. b4 {[%emt 0:01:59]} Na6 {[%emt 0:02:45]} 32. b5 {[%emt 0:00:48]} Nc7 {[%emt 0:00:09]} 33. Qd3 {[%emt 0:02:58]} Ra8 {[%emt 0:01:38]} 34. Qe4 {[%emt 0:01:23]} Ne8 {[%emt 0:03:01]} 35. g3 {[%emt 0:00:58]} Bd8 {[%emt 0:00:41]} 36. Qf5 {[%emt 0:02:45]} Nf6 {[%emt 0:01:04]} 37. Qe6 {[%emt 0:01:08]} Bc7 {[%emt 0:02:34]} 38. Ng5 {[%emt 0:00:36]} h6 {[%emt 0:01:22]} 39. Nf7+ {[%emt 0:00:29]} Kh7 {[%emt 0:00:10]} 40. Ne7 {[%emt 0:01:56]} 1-0

[Event "FRA-ch Youth U14W 2019"]
[Site "Hyeres"]
[Date "2019.04.19"]
[Round "7.3"]
[White "Lesage, Margot"]
[Black "Sumarriva Paulin, Laura"]
[Result "0-1"]
[ECO "C00"]
[WhiteElo "1492"]
[BlackElo "1922"]
[Annotator "NA"]
[PlyCount "95"]
[EventDate "2019.04.14"]
[EventType "swiss"]
[EventCountry "FRA"]
[SourceTitle "playchess.com"]
[Source "ChessBase"]
[SourceQuality "1"]
[TimeControl "5400+30"]

1. e4 {[%emt 1:30:30]} e6 {[%emt 1:30:30]} 2. d3 {[%emt 0:00:00]} d5 {[%emt 0:00:00]} 3. Nd2 {[%emt 0:00:00]} Nf6 {[%emt 0:00:00]} 4. Ngf3 {[%emt 0:00:00]} c5 {[%emt 0:00:00]} 5. g3 {[%emt 0:00:00]} Nc6 {[%emt 0:00:00]} 6. Bg2 {[%emt 0:00:00]} Be7 {[%emt 0:00:00]} 7. O-O {[%emt 0:00:00]} O-O {[%emt 0:00:00]} 8. e5 {[%emt 0:00:00]} Nd7 {[%emt 0:00:00]} 9. Re1 {[%emt 0:00:00]} Qc7 {[%emt 0:00:00]} 10. Qe2 {[%emt 0:00:00]} b5 {[%emt 0:00:00]} 11. Nf1 {[%emt 0:00:00]} Bb7 {[%emt 0:00:00]} 12. h4 {[%emt 0:00:00]} Nd4 {[%emt 0:00:00]} 13. Nxd4 {[%emt 0:00:00]} cxd4 {[%emt 0:00:00]} 14. Bf4 {[%emt 0:00:00]} Rac8 {[%emt 0:00:00]} 15. Rac1 {[%emt 0:00:00]} Nb6 {[%emt 0:00:00]} 16. Qg4 {[%emt 0:00:00]} Kh8 {[%emt 0:00:00]} 17. Bd2 {[%emt 0:00:00]} Na4 {[%emt 0:00:00]} 18. Nh2 {[%emt 0:00:00]} Nxb2 {[%emt 0:00:00]} 19. Nf3 {[%emt 0:00:00]} Na4 {[%emt 0:00:00]} 20. Nxd4 {[%emt 0:00:00]} a6 {[%emt 0:00:00]} 21. Bg5 {[%emt 0:00:00]} Ba3 {[%emt 0:00:00]} 22. Ra1 {[%emt 0:00:00]} Bb2 {[%emt 0:00:00]} 23. Rab1 {[%emt 0:00:00]} Bxd4 {[%emt 0:00:00]} 24. Qxd4 {[%emt 0:00:00]} Qxc2 {[%emt 0:00:00]} 25. h5 {[%emt 0:00:00]} h6 {[%emt 0:00:00]} 26. Bf4 {[%emt 0:00:00]} Nc3 {[%emt 0:00:52]} 27. Rbc1 {[%emt 0:00:00]} Ne2+ {[%emt 0:00:32]} 28. Rxe2 {[%emt 0:00:00]} Qxe2 {[%emt 0:00:10]} 29. Rxc8 {[%emt 0:00:00]} Bxc8 {[%emt 0:01:54]} 30. Qc5 {[%emt 0:00:00]} Kg8 {[%emt 0:00:23]} 31. Bc1 {[%emt 0:00:00]} b4 {[%emt 0:01:45]} 32. Be3 {[%emt 0:00:00]} Qxd3 {[%emt 0:01:22]} 33. Qxb4 {[%emt 0:00:00]} Qb5 {[%emt 0:00:53]} 34. Qd6 {[%emt 0:00:00]} Bd7 {[%emt 0:01:32]} 35. Bc5 {[%emt 0:00:00]} Rc8 {[%emt 0:00:30]} 36. Ba3 {[%emt 0:00:00]} Qc6 {[%emt 0:01:29]} 37. Qb4 {[%emt 0:00:07]} Qa4 {[%emt 0:01:31]} 38. Qd6 {[%emt 0:00:26]} Bb5 {[%emt 0:00:36]} 39. Bf3 {[%emt 0:01:19]} Qc2 {[%emt 0:00:27]} 40. Bg4 {[%emt 0:01:38]} Qc6 {[%emt 0:03:11]} 41. Qe7 {[%emt 0:00:15]} Re8 {[%emt 0:00:37]} 42. Qd6 {[%emt 0:04:00]} Qc4 {[%emt 0:00:43]} 43. Bh3 {[%emt 0:00:57]} Qxa2 {[%emt 0:00:30]} 44. Bc5 {[%emt 0:00:45]} Qb1+ {[%emt 0:00:47]} 45. Kh2 {[%emt 0:00:13]} Qd1 {[%emt 0:00:43]} 46. g4 {[%emt 0:00:38]} Qf3 {[%emt 0:00:36]} 47. Be3 {[%emt 0:00:45]} Qe4 {[%emt 0:00:43]} 48. Bd4 {[%emt 0:01:27]} 0-1

[Event "FRA-ch Youth U14W 2019"]
[Site "Hyeres"]
[Date "2019.04.19"]
[Round "7.4"]
[White "Milojevic-Daim, Lola-Shaina"]
[Black "Blanquet, Camille"]
[Result "1/2-1/2"]
[ECO "A00"]
[WhiteElo "1486"]
[BlackElo "1641"]
[Annotator "NA"]
[PlyCount "62"]
[EventDate "2019.04.14"]
[EventType "swiss"]
[EventCountry "FRA"]
[SourceTitle "playchess.com"]
[Source "ChessBase"]
[SourceQuality "1"]
[TimeControl "5400+30"]

1. e4 {[%emt 0:00:00]} g6 {[%emt 0:00:00]} 2. d3 {[%emt 0:00:01]} Bg7 {[%emt 0:00:00]} 3. g3 {[%emt 0:00:13]} d6 {[%emt 0:03:03]} 4. Bg2 {[%emt 0:00:26]} Nd7 {[%emt 0:03:11]} 5. f4 {[%emt 0:01:23]} e6 {[%emt 0:04:57]} 6. Nf3 {[%emt 0:01:35]} b6 {[%emt 0:03:29]} 7. O-O {[%emt 0:02:14]} Ne7 {[%emt 0:01:49]} 8. c3 {[%emt 0:01:41]} Bb7 {[%emt 0:00:51]} 9. Re1 {[%emt 0:02:15]} O-O {[%emt 0:02:24]} 10. Na3 {[%emt 0:03:48]} a6 {[%emt 0:06:52]} 11. Nc2 {[%emt 0:03:02]} d5 {[%emt 0:05:09]} 12. e5 {[%emt 0:11:12]} Rc8 {[%emt 0:03:46]} 13. d4 {[%emt 0:01:45]} c5 {[%emt 0:02:17]} 14. g4 {[%emt 0:03:37]} Nb8 {[%emt 0:06:29]} 15. Ne3 {[%emt 0:03:59]} Nbc6 {[%emt 0:02:43]} 16. a3 {[%emt 0:04:19]} Na5 {[%emt 0:05:09]} 17. Nf1 {[%emt 0:05:15]} Qd7 {[%emt 0:03:40]} 18. Ng3 {[%emt 0:04:37]} Nc4 {[%emt 0:04:45]} 19. Bf1 {[%emt 0:05:53]} cxd4 {[%emt 0:01:13]} 20. cxd4 {[%emt 0:03:05]} b5 {[%emt 0:01:14]} 21. b3 {[%emt 0:03:51]} Nb6 {[%emt 0:02:29]} 22. h4 {[%emt 0:10:16]} Nc6 {[%emt 0:07:19]} 23. h5 {[%emt 0:07:15]} f5 {[%emt 0:05:58]} 24. hxg6 {[%emt 0:06:41]} hxg6 {[%emt 0:00:40]} 25. Be3 {[%emt 0:00:28]} Qe7 {[%emt 0:03:14]} 26. g5 {[%emt 0:02:44]} Kf7 {[%emt 0:01:26]} 27. Re2 {[%emt 0:02:57]} Rh8 {[%emt 0:01:42]} 28. Rh2 {[%emt 0:02:11]} Rxh2 {[%emt 0:01:23]} 29. Nxh2 {[%emt 0:00:22]} Rh8 {[%emt 0:01:19]} 30. Qc1 {[%emt 0:01:04]} Rc8 {[%emt 0:02:50]} 31. Qd1 {[%emt 0:00:31]} Rh8 {[%emt 0:00:12]} 1/2-1/2

[Event "FRA-ch Youth U14W 2019"]
[Site "Hyeres"]
[Date "2019.04.20"]
[Round "8.2"]
[White "Sumarriva Paulin, Laura"]
[Black "Amr-Tardif, Corail"]
[Result "1/2-1/2"]
[ECO "A58"]
[WhiteElo "1922"]
[BlackElo "1617"]
[Annotator "NA"]
[PlyCount "71"]
[EventDate "2019.04.14"]
[EventType "swiss"]
[EventCountry "FRA"]
[SourceTitle "playchess.com"]
[Source "ChessBase"]
[SourceQuality "1"]
[TimeControl "5400+30"]

1. d4 {[%emt 0:00:00]} Nf6 {[%emt 0:00:00]} 2. c4 {[%emt 0:00:00]} c5 {[%emt 0:00:00]} 3. d5 {[%emt 0:00:00]} b5 {[%emt 0:00:00]} 4. cxb5 {[%emt 0:00:08]} a6 {[%emt 0:00:00]} 5. bxa6 {[%emt 0:00:12]} g6 {[%emt 0:00:02]} 6. Nc3 {[%emt 0:00:20]} Bg7 {[%emt 0:00:06]} 7. a7 {[%emt 0:00:37]} Rxa7 {[%emt 0:00:05]} 8. e4 {[%emt 0:00:12]} O-O {[%emt 0:00:46]} 9. Nf3 {[%emt 0:01:16]} d6 {[%emt 0:01:10]} 10. Be2 {[%emt 0:01:45]} Bg4 {[%emt 0:01:36]} 11. O-O {[%emt 0:01:24]} Nbd7 {[%emt 0:01:06]} 12. Qc2 {[%emt 0:02:57]} Bxf3 {[%emt 0:01:58]} 13. Bxf3 {[%emt 0:00:37]} Ne5 {[%emt 0:00:10]} 14. Be2 {[%emt 0:00:54]} Qb6 {[%emt 0:04:08]} 15. Nb5 {[%emt 0:04:22]} Ra5 {[%emt 0:07:05]} 16. a4 {[%emt 0:03:35]} Raa8 {[%emt 0:04:36]} 17. Bd2 {[%emt 0:17:16]} Rfb8 {[%emt 0:05:47]} 18. Bc3 {[%emt 0:02:47]} Ned7 {[%emt 0:06:50]} 19. Ra3 {[%emt 0:14:17]} Ne8 {[%emt 0:06:29]} 20. Rfa1 {[%emt 0:08:53]} Bxc3 {[%emt 0:02:37]} 21. bxc3 {[%emt 0:05:13]} Nc7 {[%emt 0:10:19]} 22. c4 {[%emt 0:01:19]} Ra5 {[%emt 0:06:19]} 23. f4 {[%emt 0:02:57]} Rba8 {[%emt 0:06:03]} 24. Qc3 {[%emt 0:02:32]} Qb7 {[%emt 0:05:55]} 25. e5 {[%emt 0:05:22]} dxe5 {[%emt 0:07:36]} 26. fxe5 {[%emt 0:00:42]} R8a6 {[%emt 0:01:54]} 27. Bf3 {[%emt 0:07:06]} Qb8 {[%emt 0:01:20]} 28. e6 {[%emt 0:14:19]} fxe6 {[%emt 0:02:02]} 29. dxe6 {[%emt 0:01:37]} Nb6 {[%emt 0:01:52]} 30. Nxc7 {[%emt 0:01:29]} Qxc7 {[%emt 0:00:40]} 31. Bd5 {[%emt 0:00:25]} Rxa4 {[%emt 0:02:53]} 32. Qf3 {[%emt 0:00:37]} Qd8 {[%emt 0:01:32]} 33. Rxa4 {[%emt 0:00:32]} Rxa4 {[%emt 0:00:05]} 34. Rxa4 {[%emt 0:00:34]} Nxa4 {[%emt 0:00:06]} 35. Qb3 {[%emt 0:00:36]} Nb6 {[%emt 0:02:50]} 36. Qf3 {[%emt 0:01:08]} 1/2-1/2